Cogmind - Beta 11 X8 @@@ ROGUE MODE // 2021.12.13 @ 11:03:33 Player: PhenomPhear Result: Self-destructed Performance ------------- Evolutions (2) 1000 Regions Visited (6) 1200 Robots Destroyed (26) 130 Value Destroyed (893) 893 Prototype IDs (27) 540 Alien Tech Used (0) 0 Bonus (500) 500 TOTAL SCORE: 4263 Bonus ------- Entered Garrisons 200 Aligned with FarCom 300 Cogmind --------- Core Integrity 241/550 Matter 291/300 Energy 100/100 System Corruption 4% Temperature Cool (9) Movement Core (350) Ox6 Location -8/Garrison Parts ------- > --- POWER (1) -------- (None) > --- PROPULSION (3) --- (None) > --- UTILITY (4) ------ Large Storage Unit > --- WEAPON (3) ------- (None) > --- INVENTORY (15) --- High-capacity Matter Pod (200) Machine Analyzer Reflective Plating Relay Coupler [Swarmer] (40) Relay Coupler [Sentry] (22) Relay Coupler [Heavy] (13) Skeleton Box EM Pulse Cannon EM Pulse Cannon EM Pulse Cannon EM Pulse Cannon Ion Cannon Ion Cannon Ion Cannon Peak State ------------ > --- POWER ------------ Light Angular Momentum Engine > --- PROPULSION ------- Light Treads Wheel Aerolev Unit > --- UTILITY ---------- Large Storage Unit Advanced Targeting Computer Core Shielding Reflective Plating > --- WEAPON ----------- Shock Rifle Ion Cannon Enhanced Autogun > --- INVENTORY -------- High-capacity Matter Pod Machine Analyzer Skeleton Box Heavy Particle Cannon Ion Cannon Ion Cannon Ion Cannon [Rating: 31] Favorites ----------- Power Light Angular Momentum Engine Engine Light Angular Momentum Engine Propulsion Light Treads Treads Light Treads Wheel Wheel Hover Unit Aerolev Unit Utility Advanced Targeting Computer Device Advanced Heat Sink Storage Large Storage Unit Processor Advanced Targeting Computer Protection Improved Light Armor Plating Weapon Ion Cannon Energy Gun Shock Rifle Energy Cannon Ion Cannon Ballistic Gun Enhanced Autogun Launcher Rocket Launcher Build | -11 -10 -10 -10 -9 -8 -8 ------- Run | Scr Mat Min Exi Min Mat Gar Slots Evolved 4 | . . . . . 4 . Power . | . . . . . . . Propulsion 1 | . . . . . 1 . Utility 2 | . . . . . 2 . Weapon 1 | . . . . . 1 . Parts Attached 34 | . . 4 1 1 17 11 Power 2 | . . . . 1 1 . Engine 2 | . . . . 1 1 . Core . | . . . . . . . Reactor . | . . . . . . . Propulsion 4 | . . . . . 3 1 Treads 2 | . . . . . 1 1 Leg . | . . . . . . . Wheel 1 | . . . . . 1 . Hover 1 | . . . . . 1 . Flight . | . . . . . . . Utility 10 | . . 2 1 . 5 2 Device 2 | . . . . . 2 . Storage 1 | . . . . . 1 . Processor 2 | . . 2 . . . . Hackware . | . . . . . . . Protection 5 | . . . 1 . 2 2 Artifact . | . . . . . . . Weapon 18 | . . 2 . . 8 8 Energy Gun 3 | . . . . . 2 1 Energy Cannon 8 | . . . . . 5 3 Ballistic Gun 5 | . . . . . 1 4 Ballistic Cannon . | . . . . . . . Launcher 2 | . . 2 . . . . Special Weapon . | . . . . . . . Impact Weapon . | . . . . . . . Slashing Weapon . | . . . . . . . Piercing Weapon . | . . . . . . . Special Melee Weapon . | . . . . . . . Unidentified Prototypes 2 | . . . . . 2 . Corrupted Parts 1 | . . . . . 1 . System Corruption 4 | . . . . . 4 . Parts Lost 19 | . . 1 . . 5 13 Power 1 | . . . . . 1 . Propulsion 4 | . . . . . . 4 Utility 5 | . . . . . . 5 Weapon 9 | . . 1 . . 4 4 Highest Loss Streak 11 | . . 1 . . 3 11 Average Slot Usage (%) 64 | . . 34 41 42 79 83 Engine 3 | . . . . . 7 . Treads 4 | . . . . . 7 7 Wheel 2 | . . . . . 2 7 Hover 4 | . . . . . 6 9 Device 1 | . . . . . . 8 Storage 4 | . . . . . 6 9 Processor 12 | . . 24 25 14 9 9 Protection 11 | . . . 2 14 15 7 Energy Gun 5 | . . . . . 10 3 Energy Cannon 6 | . . . . . 9 11 Ballistic Gun 2 | . . . . . 2 11 Launcher 5 | . . 10 14 14 . . Naked Turns 49 | . 19 30 . . . . Heaviest Build 46 | . . 4 7 7 46 40 Greatest Support 20 | 3 3 3 3 3 20 20 Greatest Overweight (x) 11 | . . 1 2 2 7 11 Average Overweight (x) 1 | . . . 1 2 2 3 Largest Inventory Capacity 15 | 5 5 5 5 5 15 15 Average Capacity 9 | 5 5 5 5 5 11 15 Most Carried 15 | . 1 5 5 5 11 15 Average Carried 6 | . . 4 4 4 5 12 Final Capacity 15 | 5 5 5 5 5 15 15 Final Carried 14 | . 1 5 5 5 11 14 Class Distribution -------------------- 88% | Mutant 6% | Skirmisher 3% | Scavenger-Mutant Dominant Class ---------------- Mutant | -10/Materials Mutant | -10/Mines Mutant | -10/Exiles Mutant | -9/Mines Mutant | -8/Materials Mutant | -8/Garrison Resources | -11 -10 -10 -10 -9 -8 -8 ----------- Run | Scr Mat Min Exi Min Mat Gar Matter Collected 767 | . . 346 10 64 188 159 Remotely . | . . . . . . . Salvage Created 979 | . . 59 . 16 713 191 Parts 60 | . . 4 . 6 39 11 Haulers Intercepted . | . . . . . . . Recyclers Shooed 1 | . . . . . 1 . Parts Field Recycled . | . . . . . . . Retrieved Matter . | . . . . . . . Parts Self-Destructed . | . . . . . . . Prevented . | . . . . . . . Kills | -11 -10 -10 -10 -9 -8 -8 ------- Run | Scr Mat Min Exi Min Mat Gar Combat Hostiles Destroyed 28 | . . 8 . 4 11 5 Guns 11 | . . . . . 6 5 Cannons 4 | . . . . . 4 . AOE 13 | . . 8 . 4 1 . Classes Destroyed 8 | . . 3 . 1 4 . Builder 1 | . . 1 . . . . Tunneler 1 | . . . . . 1 . Recycler 3 | . . 1 . . 2 . Watcher 1 | . . . . . 1 . Swarmer 9 | . . . . 4 3 2 Grunt 5 | . . . . . 5 . Sentry 6 | . . . . . 3 3 Assembled 8 | . . 8 . . . . Best Kill Streak 4 | . . 3 . 4 3 3 Combat Bots Only 4 | . . 3 . 4 3 3 Max Kills in Single Turn 3 | . . 2 . 3 1 1 Gunslinging . | . . . . . . . Exploded 3 | . . 2 . 3 1 . Melee . | . . . . . . . Uniques/NPCs Destroyed . | . . . . . . . Combat | -11 -10 -10 -10 -9 -8 -8 -------- Run | Scr Mat Min Exi Min Mat Gar Damage Taken 2409 | . . 176 . 88 755 1390 Core 421 | . . 81 . 31 52 257 Absorbed by Shields 19 | . . . . . . 19 Core Remaining (%) 77 | 100 . . . 55 . . Volleys Fired 93 | . . 11 . 4 43 35 Largest 3 | . . 1 . 1 3 3 Hottest 195 | . . 33 . 33 195 195 Shots Fired 145 | . . 11 . 4 79 51 Gun 90 | . . . . . 44 46 Cannon 40 | . . . . . 35 5 Launcher 15 | . . 11 . 4 . . Special . | . . . . . . . Kinetic 52 | . . . . . 11 41 Thermal 45 | . . . . . 35 10 Explosive 15 | . . 11 . 4 . . Electromagnetic 33 | . . . . . 33 . Robot Hit Streak 20 | . . 1 . . 16 20 Robot Miss Streak 4 | . . 2 . . 4 3 Penetration Max . | . . . . . . . Secondary Targets . | . . . . . . . Shots Hit Robots 96 | . . 2 . . 56 38 Core Hits 57 | . . 21 . 5 22 9 Critical Kills . | . . . . . . . Critical Parts Destroyed 1 | . . . . . 1 . Critical Strikes 1 | . . . . . 1 . Destroy 1 | . . . . . 1 . Melee Attacks . | . . . . . . . Impact . | . . . . . . . Slashing . | . . . . . . . Piercing . | . . . . . . . Sneak Attacks . | . . . . . . . Combat Hostiles . | . . . . . . . Follow-up Attacks . | . . . . . . . Damage Inflicted 2575 | . . 612 . 181 1095 687 Guns 1217 | . . . . . 629 588 Cannons 540 | . . . . . 443 97 Explosions 816 | . . 612 . 181 23 . Melee . | . . . . . . . Ramming 2 | . . . . . . 2 Kinetic 697 | . . . . . 165 532 Thermal 619 | . . . . . 466 153 Explosive 793 | . . 612 . 181 . . Electromagnetic 464 | . . . . . 464 . Impact . | . . . . . . . Slashing . | . . . . . . . Piercing . | . . . . . . . Highest Corruption 4 | . . . . . 4 4 Average Corruption 4 | . . . . . 4 4 Corruption Purged . | . . . . . . . Effects 14 | . . . . . 4 10 Message Errors 2 | . . . . . 1 1 Matter Fused 2 | . . . . . . 2 Heat Flow Errors 2 | . . . . . 1 1 Energy Discharges 3 | . . . . . 1 2 Data Loss (minor) 4 | . . . . . 1 3 Weapon Failures 1 | . . . . . . 1 Overload Shots . | . . . . . . . Overflow Damage 29 | . . . . . 29 . Projectiles 27 | . . . . . 27 . Explosions 2 | . . . . . 2 . Melee . | . . . . . . . Knockbacks . | . . . . . . . Impact . | . . . . . . . Kinetic . | . . . . . . . Secondary . | . . . . . . . Self-Inflicted Damage 52 | . . . . 30 22 . Shots 2 | . . . . 1 1 . Rammed 3 | . . . . . . 3 Targets Rammed 3 | . . . . . . 3 Kicked . | . . . . . . . Crushed . | . . . . . . . Highest Temperature 270 | . . . . . 270 81 Average Temperature 75 | . . . . . 80 27 Received Heat Transfer 881 | . . . . . 396 485 Siege Activations . | . . . . . . . Robots Corrupted . | . . . . . . . Combat Hostiles . | . . . . . . . Parts Fried 3 | . . . . . 3 . Impact Corruptions . | . . . . . . . Robots Melted . | . . . . . . . Combat Hostiles . | . . . . . . . Parts Melted 2 | . . . . . 2 . Heat Transferred 1012 | . . . . . 753 259 Parts Sabotaged . | . . . . . . . Parts Stolen . | . . . . . . . Parts Stripped . | . . . . . . . Power Chain Reactions 2 | . . . . . 2 . Missiles Intercepted . | . . . . . . . Alert | -11 -10 -10 -10 -9 -8 -8 ------- Run | Scr Mat Min Exi Min Mat Gar Peak Influence 223 | . 5 16 . 150 171 223 Initial 13 | . . 1 . . . 13 Average 70 | . 4 5 . 74 66 126 Maximum Alert Level 1 | . . . . . . 1 Low Security (%) 98 | 100 100 100 . 100 100 88 Level 1 1 | . . . . . . 11 Level 2 . | . . . . . . . Level 3 . | . . . . . . . Level 4 . | . . . . . . . Level 5 . | . . . . . . . High Security . | . . . . . . . Max Security . | . . . . . . . Squads Dispatched 2 | . . . . . 2 . Investigation . | . . . . . . . Extermination . | . . . . . . . Reinforcement 1 | . . . . . 1 . Assault . | . . . . . . . Garrison 1 | . . . . . 1 . Intercept . | . . . . . . . Construction Impeded . | . . . . . . . Haulers Reinforced . | . . . . . . . Active Scanning Responses . | . . . . . . . Cargo Convoy Interrupts . | . . . . . . . Stealth | -11 -10 -10 -10 -9 -8 -8 --------- Run | Scr Mat Min Exi Min Mat Gar Distress Signals 1 | . . . . . 1 . Communications Jammed . | . . . . . . . Distress Signals . | . . . . . . . Times Spotted 40 | . . 8 . 4 17 11 Peak Tracking Total 7 | . . 2 . 4 3 7 Tactical Retreats 2 | . . . . . 1 1 Traps | -11 -10 -10 -10 -9 -8 -8 ------- Run | Scr Mat Min Exi Min Mat Gar Traps Triggered 2 | . . 1 . . . 1 Indirectly . | . . . . . . . Trap Hack Attempts . | . . . . . . . Triggered . | . . . . . . . Disarmed . | . . . . . . . Reprogrammed . | . . . . . . . Reused . | . . . . . . . Traps Extracted . | . . . . . . . Installed . | . . . . . . . Triggered . | . . . . . . . Machines | -11 -10 -10 -10 -9 -8 -8 ---------- Run | Scr Mat Min Exi Min Mat Gar Machines Disabled 5 | . . . . 4 . 1 Max in Single Turn 2 | . . . . 2 . 1 Garrison Relay 1 | . . . . . . 1 Machines Sabotaged . | . . . . . . . Garrisons Compromised . | . . . . . . . Overloaded Fab Kills . | . . . . . . . Hacking | -11 -10 -10 -10 -9 -8 -8 --------- Run | Scr Mat Min Exi Min Mat Gar Machines Accessed 4 | . 1 1 1 . 1 . Terminals 1 | . 1 . . . . . Fabricators . | . . . . . . . Repair Stations . | . . . . . . . Recycling Units . | . . . . . . . Scanalyzers . | . . . . . . . Garrison Access 1 | . . . . . 1 . Total Hacks 4 | . 1 1 1 . 1 . Successful 4 | . 1 1 1 . 1 . Failed . | . . . . . . . Catastrophic . | . . . . . . . Database Lockouts . | . . . . . . . Manual 1 | . . . 1 . . . Terminals 1 | . 1 . . . . . Fabricators . | . . . . . . . Repair Stations . | . . . . . . . Recycling Units . | . . . . . . . Scanalyzers . | . . . . . . . Garrison Access 1 | . . . . . 1 . Terminal Hacks 3 | . 1 1 1 . . . Prototype ID Bank 1 | . 1 . . . . . Open Door 1 | . . 1 . . . . EX-Prototype ID Bank 1 | . . . 1 . . . Fabricator Hacks . | . . . . . . . Repair Station Hacks . | . . . . . . . Recycling Unit Hacks . | . . . . . . . Scanalyzer . | . . . . . . . Garrison Access Hacks 1 | . . . . . 1 . Unlock Access 1 | . . . . . 1 . Unauthorized Hacks . | . . . . . . . Terminals . | . . . . . . . Fabricators . | . . . . . . . Repair Stations . | . . . . . . . Recycling Units . | . . . . . . . Scanalyzers . | . . . . . . . Garrison Access . | . . . . . . . Data Cores Recovered . | . . . . . . . Used . | . . . . . . . Hacking Detections . | . . . . . . . Full Trace Events . | . . . . . . . Feedback Events . | . . . . . . . Feedback Blocked . | . . . . . . . Robot Schematics Acquired . | . . . . . . . Robots Built . | . . . . . . . Authchips . | . . . . . . . Time . | . . . . . . . Total Robot Build Rating . | . . . . . . . Part Schematics Acquired . | . . . . . . . Parts Built . | . . . . . . . Authchips . | . . . . . . . Time . | . . . . . . . Total Part Build Rating . | . . . . . . . Parts Repaired . | . . . . . . . Time . | . . . . . . . Parts Recycled . | . . . . . . . Recycled Matter . | . . . . . . . Retrieved Matter . | . . . . . . . Retrieved Components . | . . . . . . . Parts Scanalyzed . | . . . . . . . Part Schematics Acquired . | . . . . . . . Parts Damaged . | . . . . . . . Bothacking | -11 -10 -10 -10 -9 -8 -8 ------------ Run | Scr Mat Min Exi Min Mat Gar Used RIF Installer . | . . . . . . . Robots Hacked . | . . . . . . . Non-combat . | . . . . . . . Combat . | . . . . . . . Robot Hacks Applied . | . . . . . . . Relay Couplers Released 4 | . . . . . . 4 Machine Destruction 4 | . . . . . . 4 Fabnet Peak Effective % . | . . . . . . . Robots Rewired . | . . . . . . . Allies Hacked . | . . . . . . . Hacks Repelled . | . . . . . . . Allies | -11 -10 -10 -10 -9 -8 -8 -------- Run | Scr Mat Min Exi Min Mat Gar Total Allies . | . . . . . . . Largest Group . | . . . . . . . Highest-Rated Group . | . . . . . . . Highest-Rated Ally . | . . . . . . . Total Orders . | . . . . . . . Ally Attacks . | . . . . . . . Total Damage . | . . . . . . . Kills . | . . . . . . . Allies Corrupted . | . . . . . . . Allies Melted . | . . . . . . . Intel | -11 -10 -10 -10 -9 -8 -8 ------- Run | Scr Mat Min Exi Min Mat Gar Robot Analysis Total . | . . . . . . . Derelict Logs Recovered 1 | . . . . 1 . . Drone Launches . | . . . . . . . Drone Recoveries . | . . . . . . . Exploration | -11 -10 -10 -10 -9 -8 -8 ------------- Run | Scr Mat Min Exi Min Mat Gar Turns Passed 3252 | 9 19 246 260 758 1601 359 Spaces Moved 1692 | 18 36 319 242 451 480 146 Core 1156 | 18 36 319 242 451 85 5 Treads 269 | . . . . . 255 14 Legs . | . . . . . . . Wheels 267 | . . . . . 140 127 Hover . | . . . . . . . Flight . | . . . . . . . Fastest Speed 50 | 50 50 50 100 150 50 125 Average Speed 149 | 50 50 58 106 150 243 150 Slowest Speed 600 | 50 50 100 150 150 400 600 Overloaded Moves . | . . . . . . . Propulsion Burnouts . | . . . . . . . Robots Hopped . | . . . . . . . Cave-ins Triggered . | . . . . . . . Exploration Rate (%) 36 | 3 8 38 62 94 23 24 Regions Visited 6 Branch Regions 3 Pre-discovered Areas 1 | . . . . 1 . . Known Exits Taken 1 | . . . . . 1 . Unknown Exits Taken 5 | 1 1 1 1 1 . . Scrap Searched 4 | . . 1 . 3 . . Spaces Dug 25 | . . 23 . . 2 . Terrain Destroyed 131 | . . 92 . 23 16 . Melee . | . . . . . . . Projectile 5 | . . . . . 5 . AOE 126 | . . 92 . 23 11 . Terrain Rammed . | . . . . . . . Walls Destroyed . | . . . . . . . Machines Disabled . | . . . . . . . Actions | -11 -10 -10 -10 -9 -8 -8 --------- Run | Scr Mat Min Exi Min Mat Gar Total 2257 | 17 36 367 246 529 838 224 Wait 402 | . . 27 . 73 285 17 Move 1687 | 17 35 318 241 450 480 146 Hop . | . . . . . . . Pick Up 22 | . 1 6 2 . 9 4 Fast Attach 19 | . . 3 . . 12 4 Attach 8 | . . 1 1 1 4 1 Detach 3 | . . . 1 1 1 . Swap 7 | . . . . . 1 6 Drop 6 | . . 1 1 . 3 1 Fire 93 | . . 11 . 4 43 35 Melee . | . . . . . . . Ram 2 | . . . . . . 2 Kick . | . . . . . . . Crush 1 | . . . . . . 1 Escape Stasis 7 | . . . . . . 7 Rewire . | . . . . . . . Trap . | . . . . . . . Miscellaneous . | . . . . . . . Route ------- -11/Scrapyard -10/Materials -10/Mines (discovered 2 exits: [*Mat] / *Exi) -10/Exiles (discovered 2 exits: [*Min x2]) -9/Mines -8/Materials (discovered 2 exits: [*Sto] / Gar) -8/Garrison History --------- Turn | Location | Event 5 | -11/Scrapyard | Discovered new exit (range 12) 10 | -11/Scrapyard | Entered Materials 11 | -10/Materials | Discovered new exit (range 14) 29 | -10/Materials | Entered Mines 31 | -10/Mines | Assembled infested the area 36 | -10/Mines | Assisted by a Guerilla fighting off Assembled 53 | -10/Mines | Met a Derelict who couldn't figure out how to use a Trap Extractor 211 | -10/Mines | Discovered new exit (range 8) 219 | -10/Mines | Received a Rocket Launcher from a helpful Derelict 271 | -10/Mines | Deemed a non-threat by the Exiles lab entrance 271 | -10/Mines | Discovered new exit (range 5) 275 | -10/Mines | Entered Exiles 289 | -10/Exiles | Discovered new exit (range 15) 308 | -10/Exiles | Met 8R-AWN 318 | -10/Exiles | Build established: Mutant 323 | -10/Exiles | Met EX-HEX 351 | -10/Exiles | Met EX-BIN 362 | -10/Exiles | Aligned with FarCom system 363 | -10/Exiles | Given EX-Vault access code 387 | -10/Exiles | Opened EX-Vault 400 | -10/Exiles | Found Skeleton Box 420 | -10/Exiles | Warned to stay clear of 0b10 Research branches 448 | -10/Exiles | Met EX-DEC 517 | -10/Exiles | Discovered new exit (range 14) 535 | -10/Exiles | Left Exiles lab with Skeleton Box 535 | -10/Exiles | Entered Mines 560 | -9/Mines | Met a Derelict bent on vengeance 717 | -9/Mines | Found a hidden stash of uninstalled traps 900 | -9/Mines | Learned 4 Materials zone layouts 1040 | -9/Mines | Discovered new exit (range 7) 1057 | -9/Mines | Learned location of Storage (-8) 1293 | -9/Mines | Entered Materials 1293 | -8/Materials | Evolved 4 slots: Propulsion x1, Utility x2, Weapon x1 1993 | -8/Materials | Discovered new exit (range 15) 2375 | -8/Materials | Garrison activated, responded to threat 2807 | -8/Materials | Lost 3 parts (1p2w) 2894 | -8/Materials | Identified exit to Garrison 2894 | -8/Materials | Entered Garrison 2992 | -8/Garrison | Triggered checkpoint 3111 | -8/Garrison | Garrison Relay disabled 3188 | -8/Garrison | Triggered checkpoint 3233 | -8/Garrison | Triggered checkpoint 3252 | -8/Garrison | Core integrity fell below 50% 3253 | -8/Garrison | Self-destructed Last Messages --------------- 03203_ Y-45 Defender destroyed. 03208_ Acquired 27 matter. 03212_ Dropped Hvy. Particle Cannon. 03213_ Acquired Hvy. Assault Rifle. 03217_ Lgt. Armor Plating destroyed. 03217_ S-10 Pest destroyed. 03223_ Acquired Lgt. Armor Plating. 03223_ Hvy. Laser destroyed. 03229_ S-10 Pest destroyed. 03232_ Lgt. Treads destroyed. 03233_ Beams of light sweep through the air. An alarm sounds. 03233_ S-10 Pest destroyed. 03238_ Hvy. Assault Rifle destroyed. 03238_ Critical hit (Destroy). 03238_ Lgt. Armor Plating destroyed. 03244_ Adv. Heat Sink destroyed. 03249_ Acquired 23 matter. 03250_ Adv. Targeting Computer destroyed. 03250_ Hvy. Assault Rifle destroyed. 03252_ Aerolev Unit destroyed. Map ----- +----------------------------------------------------+ | ???????????######????????????????????????????????? | | ???????????# #????????????????????????????????? | | ???????????# #????????????????????????????????? | | ???????????# #????????????????????????????????? | | ???????????### #????????????????????????????????? | | ?????????????# #????????????????????????????????? | | ?????????????# #????????????????????????????????? | | ?????????????# #????????????????????????????????? | | ???????####### #????????????????????????????????? | | ???????#^ ##############???????????????????? | | ???????# ##### #???????????????????? | | ???????# #???# #???????????????????? | | ???????# #???############## #???????????????????? | | ???????# ##### #??????????# #???????????????????? | | ?????###%"[ [ #??????????# #???????????????????? | | ?????# #######??????????# #???????????????????? | | ?????# #????????????????# #???????????????????? | | ?????# #????????????????# #???????????????????? | | ?????### #????????????????# #??C??????#?????????? | | ???????# ###?????????????## ##""""## ##????????? | | ???????# #"#?????????????# #????????? | | ???????# "#?????????????# ??????? | | ???????# !#?????????????# ??????? | | ???????# "#?????????????# ## ## ##???????? | | ???????###"#???????????### ## ## #????????? | | ??????????##???????????# @[ ^ g ????????? | | ???????????????????????# %%= g ????????? | | ???????????????????????# s ^ g ????????? | | ???????????????????????# Y [ ^ "????????? | | ???????????????????????### %## ## ?????????? | | ?????????????????????????# =#? #?? ?????????? | | ????????????????????????? ? ????????????? | | ????????????????????????? ? ??????????? | | ?????????????????????????# ??????????? | | ?????????????????????????## ##""""####??????????? | | ??????????????????????????? #???????????????????? | | ??????????????????????????? #???????????????????? | | ??????????????????????????? #???????????????????? | | ??????????????????????????? #???????????????????? | | ??????????????????????????? #???????????????????? | | ???????????????????????????? #???????????????????? | | ?????????????????????????????????????????????????? | | ?????????????????????????????????????????????????? | | ?????????????????????????????????????????????????? | | ?????????????????????????????????????????????????? | | ?????????????????????????????????????????????????? | | ?????????????????????????????????????????????????? | | ?????????????????????????????????????????????????? | | ?????????????????????????????????????????????????? | | ?????????????????????????????????????????????????? | +----------------------------------------------------+ Best States ------------- Heat Dissipation 50 Energy Generation 18 Energy Capacity 150 Matter Stores 300 Matter Capacity 300 Sight Range 16 Terrain Scan Density 10 Armor Coverage 150 Resistance: TH 10 Core Shielding 20 Evasion (%) 50 Targeting Accuracy 8 Target Analysis 5 Recoil Reduction 1 Item Schematics ----------------- None Robot Schematics ------------------ None Fabricated ------------ Nothing Alien Tech Used ----------------- None Achievements -------------- None Challenges ------------ None Game ------ Seed FluxStructuralExpander Manual? 0 Play Time 00:25:08 Cumulative 1112.2 hours Start 2021.12.13 @ 10:39:40 End 2021.12.13 @ 11:03:33 Sessions 1 Manual Loads 0 Difficulty Rogue Special Mode None Game No. 713 Rogue 702 Adventurer 3 Explorer 8 Win Type - Total 18 Types 10/1/4/3/0/0/0/0/0 Lore% 87 Gallery% 91 Achievement% 81 Wizard Run 0 Options --------- ASCII 0 Keyboard 0 Movement Mouse Keybinds 0 Fullscreen 1 Font 24/Crisp Map View 76x50 Tactical HUD 1 Map Filters NONE Filters NONE Steam 1 RUN: 05027d26-b7f8-4714-8c4d-695408d4cb97